{"text_format":"1","workbook":"xlsx","n_sheets":27,"sheets":["modProv","mod_00","modFill","Инструкция","Лог обновления","Титульный","ИП","Качество и надежность","Комментарии","Проверка","TEHSHEET","et_union","modReestr","modfrmReestr","AllSheetsInThisWorkbook","modInstruction","modUpdTemplMain","modfrmCheckUpdates","modfrmDateChoose","modfrmRegion","REESTR_MO","REESTR_ORG","modClassifierValidate","modDoubleClick","mod_01","mod_01_1","mod_Com"],"not_rendered":{"charts":0,"images":31,"macros":1,"external_links":0,"defined_names":121,"comments":2,"pivot_tables":0},"unopened":[],"bounds":{"document_bytes":16777216,"sheet_cells":100000,"rows_first":2000,"rows_last":500,"rows_between":2000,"halvings":0,"cell_chars":16384,"cell_head_chars":4096},"cells_cut":0,"cells_raw":0,"read":"whole","date_system":"1900"}

{"sheet":"modProv","index":0,"n_rows":0,"n_cols":0,"rows_kept":0,"cut":false,"hidden":true,"merged":[]}

{"sheet":"mod_00","index":1,"n_rows":0,"n_cols":0,"rows_kept":0,"cut":false,"hidden":true,"merged":[]}

{"sheet":"modFill","index":2,"n_rows":0,"n_cols":0,"rows_kept":0,"cut":false,"hidden":true,"merged":[]}

{"sheet":"Инструкция","index":3,"n_rows":108,"n_cols":27,"rows_kept":108,"cut":false,"hidden":false,"merged":[[57,4,57,9],[57,10,57,23],[85,4,85,23],[21,15,21,23],[34,4,38,23],[39,4,39,23],[21,5,21,12],[40,4,44,23],[45,4,56,23],[58,4,58,9],[105,5,105,18],[87,4,87,9],[87,10,87,23],[88,4,88,23],[89,4,89,23],[20,5,20,12],[20,15,20,23],[58,10,58,23],[59,4,59,6],[59,7,59,23],[107,5,107,23],[60,7,60,23],[84,4,84,23],[97,7,97,23],[96,4,96,6],[96,7,96,23],[69,4,69,17],[90,4,90,9],[98,4,98,6],[98,7,98,23],[103,4,103,23],[1,1,1,6],[2,1,2,2],[4,1,4,24],[6,4,12,23],[13,4,18,23],[86,4,86,6],[91,4,91,9],[94,4,94,9],[94,10,94,23],[86,7,86,23],[97,4,97,5],[92,7,92,23],[90,10,90,23],[93,4,93,9],[93,10,93,23],[95,4,95,6],[95,7,95,23],[91,10,91,23],[92,4,92,6]]}
[null,null,null,null,null,null,null,null,null,null,null,null,null,null,null,null,null,null,null,null,null,null,null,null,null,null," (требуется обновление)"]
[null,{"$f":"\"Код отчёта: \" & GetCode()","v":"Код отчёта: INV.WARM.2016YEAR"}]
[null,{"$f":"\"Версия \" & Getversion()","v":"Версия 1.1"}]
[]
[null,{"$f":"Титульный!E5","v":"Контроль за использованием инвестиционных ресурсов, включаемых в регулируемые государством цены (тарифы) в сфере теплоснабжения за 2016 год"}]
[]
[null,null,null,null,"• На рабочем месте должен быть установлен MS Office 2003 SP3, 2007 SP3, 2010, 2013 с полной версией MS Excel\n\n• Макросы во время работы должны быть включены (!)\n\n• Для корректной работы отчёта требуется выбрать низкий уровень безопасности\n(В меню MS Excel 2003: Сервис | Макрос | Безопасность | выбрать пункт «Низкая безопасность» | OK)\n(В меню MS Excel 2007/2010/2013: Параметры Excel | Центр управления безопасностью | Параметры центра управления безопасностью | Параметры макросов | Включить все макросы | ОК)\n\n"]
[]
[]
[]
[]
[]
[]
[null,null,null,null,"• Если Вы работаете в табличном процессоре MS Excel 2007 и выше, то можете использовать для работы формат XLSB (Двоичная книга Excel). При работе в формате XLSB заметно быстрее происходит сохранение файла, а также уменьшается размер по сравнению с форматами XLS и XLSM\n\n• Не рекомендуется снимать защиту с листов и каким-либо образом модифицировать защищаемые формулы и расчётные поля, в противном случае, отчёт будет отклонён системой\n\n• При сохранении не следует выбирать формат XLSX (Книга Excel), так как в указанном формате макросы, необходимые для работы отчёта, безвозвратно удаляются"]
[]
[]
[]
[]
[]
[]
[null,null,null,null,"A"," - предназначенные для заполнения",null,null,null,null,null,null,null,null,"A"," - ссылки и автозаполняемые поля"]
[null,null,null,null,"A"," - с формулами и константами",null,null,null,null,null,null,null,null,"A"," - обязательные для заполнения"]
[]
[]
[]
[]
[]
[]
[]
[]
[]
[]
[]
[]
[null,null,null,null,"Если в предложенном Вам списке необходимая организация, МР/МО отсутствуют, обновите реестры с помощью кнопок\n\nВ результате синхронизации с базой данных список организаций (МР/МО) будет заменён актуальным (механизм синхронизации требует подключения к сети Интернет и основан на использовании протокола HTTPS (TCP порт 443))\n\nЕсли после обновления Вам не удалось найти необходимую организацию в списке, обратитесь к ответственному за поддержание реестра Вашего региона. Информация о региональных органах регулирования доступна по ссылке:"]
[]
[]
[]
[]
[null,null,null,null,"Информация о региональных органах регулирования"]
[]
[]
[]
[]
[]
[null,null,null,null,"• При сохранении шаблона осуществляется проверка корректности данных, в том числе на наличие значений в ячейках, обязательных для заполнения\n\n• Если какая-то ячейка не удовлетворяет условию проверки, на лист «Проверка» добавляется гиперссылка на данную ячейку и указывается причина ошибки\n\n• В колонке «Статус» для каждого сообщения возможны 2 значения: ошибка и предупреждение\n\n• При наличии сообщений со статусом «Ошибка» шаблон будет отклонён системой и не будет загружен в хранилище данных, сообщения со статусом «Предупреждение» носят информационный характер, и такой шаблон будет принят системой"]
[]
[]
[]
[]
[]
[]
[]
[]
[]
[]
[]
[null,null,null,null,"Консультации:",null,null,null,null,null,"Обратиться за помощью"]
[null,null,null,null,"Дистрибутивы:",null,null,null,null,null,"Перейти"]
[]
[]
[]
[]
[]
[]
[]
[]
[]
[]
[null,null,null,null,"Общая схема заполнения шаблонов ИП 2016"]
[]
[]
[]
[]
[]
[]
[]
[]
[]
[]
[]
[]
[]
[]
[null,null,null,null," Обосновывающие материалы необходимо загружать с помощью \"ЕИАС Мониторинг\""]
[null,null,null,null,"Руководство по загрузке документов"]
[]
[null,null,null,null,"Отчётные формы:",null,null,null,null,null,"Перейти к разделу"]
[]
[null,null,null,null,"Контакты специалистов ЦА ФАС России:"]
[null,null,null,null,"ФИО:",null,null,null,null,null,"Свириденко Елена Викторовна"]
[null,null,null,null,"E-mail:",null,null,null,null,null,"esviridenko@fas.gov.ru"]
[]
[null,null,null,null,"ФИО:",null,null,null,null,null,"Сенчикова Елена Юрьевна"]
[null,null,null,null,"E-mail:",null,null,null,null,null,"esenchikova@fas.gov.ru"]
[]
[]
[]
[]
[]
[]
[]
[]
[null,null,null,null,"При наличии подключения к Интернет, можно автоматически проверять наличие доступных обновлений. Выберите способ оповещения о наличии обновлений для отчёта:"]
[]
[null,null,null,null,null,"проверять доступные обновления (рекомендуется)",null,null,null,null,null,null,null,null,null,null,null,null,null,null,null,null,null,null,null,null,"y"]
[]
[null,null,null,null,null,"никогда не проверять наличие обновлений (не рекомендуется)"]

{"sheet":"Лог обновления","index":4,"n_rows":2,"n_cols":3,"rows_kept":2,"cut":false,"hidden":true,"merged":[]}
["Дата/Время","Сообщение","Статус"]
["2016-10-28T09:55:06","Проверка доступных обновлений...","Информация"]

{"sheet":"Титульный","index":5,"n_rows":60,"n_cols":8,"rows_kept":60,"cut":false,"hidden":true,"merged":[[62,4,62,5],[4,4,4,5],[34,4,35,4],[37,4,38,4],[61,4,61,5]]}
[]
[]
[]
[null,null,null,null,null,{"$f":"version","v":"Версия 1.1"}]
[null,null,null,null,{"$f":"\"Контроль за использованием инвестиционных ресурсов, включаемых в регулируемые государством цены (тарифы) в сфере теплоснабжения за \" & god & \" год\"","v":"Контроль за использованием инвестиционных ресурсов, включаемых в регулируемые государством цены (тарифы) в сфере теплоснабжения за 2016 год"}]
[]
[null,null,null,null,"Субъект РФ"]
[]
[null,null,null,null,"Период регулирования",2016]
[]
[null,null,null,null,"Наименование регулирующего органа"]
[]
[null,null,null,null,"В субъекте утверждены инвестиционные программы"]
[]
[]
[null,null,null,null,"Наименование организации"]
[null,null,null,null,"ИНН",""]
[null,null,null,null,"КПП",""]
[]
[null,null,null,null,"Организационно-правовая форма"]
[]
[null,null,null,null,"Вид деятельности"]
[]
[null,null,null,null,"ИП утверждена с НДС"]
[]
[null,null,null,null,"Муниципальный район",null,null,""]
[null,null,null,null,"Муниципальное образование",""]
[null,null,null,null,"ОКТМО",""]
[null,null,null,null,"Тип муниципального образования",{"$f":"IF(LEN(oktmo)=0,\"\",VLOOKUP(oktmo,OKTMO_TYPE_LIST,2,FALSE))","v":""}]
[]
[null,null,null,null,"Показатели качества и надежности"]
[]
[null,null,null,null,"Наименование инвестиционной программы"]
[]
[null,null,null,null,"Начало инвестиционной программы",null,"Год"]
[null,null,null,null,null,null,"Месяц"]
[]
[null,null,null,null,"Окончание инвестиционной программы",null,"Год"]
[null,null,null,null,null,{"$f":"PrevMonth(month_begin)","v":"Декабрь"},"Месяц"]
[]
[null,null,null,null,"Период реализации ИП",{"$f":"CalcPeriod(year_begin,month_begin,year_end,month_end)","v":"Не определено"}]
[]
[null,null,null,null,"Ссылка на обосновывающие материалы"]
[]
[null,null,null,null,null,"Адрес регулируемой организации"]
[null,null,null,null,"Юридический адрес"]
[null,null,null,null,"Почтовый адрес"]
[null,null,null,null,null,"Ответственный за предоставление информации\n (от регулируемой организации)"]
[null,null,null,null,"Фамилия, имя, отчество"]
[null,null,null,null,"Должность"]
[null,null,null,null,"Контактный телефон"]
[null,null,null,null,"e-mail"]
[null,null,null,null,null,"Адрес регулирующего органа"]
[null,null,null,null,"Юридический адрес"]
[null,null,null,null,"Почтовый адрес"]
[null,null,null,null,null,"Ответственный за предоставление информации\n (от регулирующего органа)"]
[null,null,null,null,"Фамилия, имя, отчество"]
[null,null,null,null,"Должность"]
[null,null,null,null,"Контактный телефон"]
[null,null,null,null,"e-mail"]

{"sheet":"ИП","index":6,"n_rows":48,"n_cols":24,"rows_kept":48,"cut":false,"hidden":true,"merged":[[10,4,10,11],[16,4,16,11],[15,4,15,11],[17,4,17,11],[18,4,18,11],[5,4,5,10],[6,4,6,11],[7,4,7,11],[8,4,8,11],[9,4,9,11],[11,4,11,11],[23,4,23,11],[24,4,24,11],[25,4,25,11],[26,4,26,10],[12,4,12,11],[39,10,39,11],[13,4,13,11],[14,4,14,11],[27,4,27,5],[28,4,28,11],[45,10,45,11],[29,4,29,11],[32,10,32,11],[33,10,33,11],[38,10,38,11],[19,4,19,11],[22,4,22,11],[21,4,21,11],[20,4,20,11],[44,10,44,11]]}
[null,null,null,null,null,null,null,null,null,null,null,null,null,1,2,3,4,null,1,2,3,4,4,4]
[]
[]
[null,null,null,{"$f":" \"Справка о финансировании в тыс.руб \" & IF(nds = \"да\", \"(c НДС)\", \"(без НДС)\")","v":"Справка о финансировании в тыс.руб (без НДС)"}]
[null,null,null,{"$f":"region_name & \" \" & org","v":" "}]
[]
[null,null,null,"№ п/п","Источник финансирования",null,null,null,null,null,null,null,"Всего утверждено на весь период реализации ИП",{"$f":"\"Утверждено на \" & year_begin","v":"Утверждено на "},{"$f":"\"Утверждено на \" & year_begin+1","v":"Утверждено на 1"},{"$f":"\"Утверждено на \" & year_begin+2","v":"Утверждено на 2"},{"$f":"\"Утверждено на \" & year_begin+3","v":"Утверждено на 3"},{"$f":"\"Утверждено на \" & year_begin+4","v":"Утверждено на 4"},{"$f":"\"Утверждено на \" & year_begin+5","v":"Утверждено на 5"},{"$f":"\"Утверждено на \" & year_begin+6","v":"Утверждено на 6"},{"$f":"\"Утверждено на \" & year_begin+7","v":"Утверждено на 7"},{"$f":"\"Утверждено на \" & year_begin+8","v":"Утверждено на 8"},{"$f":"\"Утверждено на \" & year_begin+9","v":"Утверждено на 9"},{"$f":"\"Утверждено на оставшийся период\"","v":"Утверждено на оставшийся период"}]
[null,null,null,null,"Всего",null,null,null,null,null,null,null,{"$f":"SUM(N8:X8)","v":0},{"$f":"N9+N14+N18+N22","v":0},0,0,0,0,0,0,0,0,0,0]
[null,null,null,1,"Собственные средства",null,null,null,null,null,null,null,{"$f":"SUM(N9:X9)","v":0},{"$f":"N10+N12+N13","v":0},0,0,0,0,0,0,0,0,0,0]
[null,null,null,"1.1","Прибыль направляемая на инвестиции",null,null,null,null,null,null,null,{"$f":"SUM(N10:X10)","v":0},{"$f":"SUMIF($L$34:$L$48,$E10,N$34:N$48)+N11","v":0},0,0,0,0,0,0,0,0,0,0]
[null,null,null,"1.1.1","за счет платы за технологическое присоединение",null,null,null,null,null,null,null,0,{"$f":"SUMIF($L$34:$L$48,$E11,N$34:N$48)","v":0},0,0,0,0,0,0,0,0,0,0]
[null,null,null,"1.2","Амортизационные отчисления",null,null,null,null,null,null,null,0,0,0,0,0,0,0,0,0,0,0,0]
[null,null,null,"1.3","Прочие собственные средства",null,null,null,null,null,null,null,0,0,0,0,0,0,0,0,0,0,0,0]
[null,null,null,"2","Привлеченные средства",null,null,null,null,null,null,null,0,{"$f":"SUM(N15:N17)","v":0},0,0,0,0,0,0,0,0,0,0]
[null,null,null,"2.1","Кредиты",null,null,null,null,null,null,null,0,{"$f":"SUMIF($L$34:$L$48,$E15,N$34:N$48)","v":0},0,0,0,0,0,0,0,0,0,0]
[null,null,null,"2.2","Займы",null,null,null,null,null,null,null,0,0,0,0,0,0,0,0,0,0,0,0]
[null,null,null,"2.3","Прочие привлеченные средства",null,null,null,null,null,null,null,0,0,0,0,0,0,0,0,0,0,0,0]
[null,null,null,"3","Бюджетное финансирование",null,null,null,null,null,null,null,{"$f":"SUM(N18:X18)","v":0},{"$f":"SUM(N19:N21)","v":0},0,0,0,0,0,0,0,0,0,0]
[null,null,null,"3.1","Федеральный бюджет",null,null,null,null,null,null,null,0,{"$f":"SUMIF($L$34:$L$48,$E19,N$34:N$48)","v":0},0,0,0,0,0,0,0,0,0,0]
[null,null,null,"3.2","Бюджет субъекта РФ",null,null,null,null,null,null,null,0,0,0,0,0,0,0,0,0,0,0,0]
[null,null,null,"3.3","Бюджет муниципального образования",null,null,null,null,null,null,null,0,0,0,0,0,0,0,0,0,0,0,0]
[null,null,null,"4","Прочие источники финансирования",null,null,null,null,null,null,null,0,{"$f":"SUM(N23:N24)","v":0},{"$f":"SUM(O23:O24)","v":0},0,0,0,0,0,0,0,0,0]
[null,null,null,"4.1","Лизинг",null,null,null,null,null,null,null,0,{"$f":"SUMIF($L$34:$L$48,$E23,N$34:N$48)","v":0},0,0,0,0,0,0,0,0,0,0]
[null,null,null,"4.2","Прочие",null,null,null,null,null,null,null,0,0,0,0,0,0,0,0,0,0,0,0]
[null,null,null,"5","Справочно:"]
[null,null,null,"5.1","Чистая прибыль в т.ч.",null,null,null,null,null,null,null,0]
[null,null,null,"5.1.0"]
[null,null,null,null,"Добавить регулируемый вид деятельности"]
[null,null,null,"5.2","Доход на инвестированный капитал",null,null,null,null,null,null,null,{"$f":"SUM(N29:X29)","v":0}]
[null,null,null,"5.3","Возврат инвест. капитала (RAB)",null,null,null,null,null,null,null,{"$f":"SUM(N30:X30)","v":0}]
[]
[null,null,null,"Производство тепловой энергии"]
[null,null,null,"№ п/п","Группа, к которой относятся мероприятия инвестиционной программы","Подгруппа, к которой относятся мероприятия инвестиционной программы","Наименование строек","Период реализации согласно ИП, лет","Плановый год ввода в эксплуатацию / выполнения мероприятия","Стадия выполнения, %","Источник финансирования",null,"Всего утверждено на весь период реализации ИП",{"$f":"\"Утверждено на \" & year_begin","v":"Утверждено на "},{"$f":"\"Утверждено на \" & year_begin+1","v":"Утверждено на 1"},{"$f":"\"Утверждено на \" & year_begin+2","v":"Утверждено на 2"},{"$f":"\"Утверждено на \" & year_begin+3","v":"Утверждено на 3"},{"$f":"\"Утверждено на \" & year_begin+4","v":"Утверждено на 4"},{"$f":"\"Утверждено на \" & year_begin+5","v":"Утверждено на 5"},{"$f":"\"Утверждено на \" & year_begin+6","v":"Утверждено на 6"},{"$f":"\"Утверждено на \" & year_begin+7","v":"Утверждено на 7"},{"$f":"\"Утверждено на \" & year_begin+8","v":"Утверждено на 8"},{"$f":"\"Утверждено на \" & year_begin+9","v":"Утверждено на 9"},{"$f":"\"Утверждено на оставшийся период\"","v":"Утверждено на оставшийся период"}]
[null,null,null,null,null,null,"Всего",null,null,null,null,null,{"$f":"SUM(M35:M36)","v":0},0,0,0,0,0,0,0,0,0,0,0]
[null,null,null,0]
[null,null,null,null,"Добавить объект"]
[]
[null,null,null,"Передача теплоэнергии по региональным тепловым сетям"]
[null,null,null,"№ п/п","Группа, к которой относятся мероприятия инвестиционной программы","Подгруппа, к которой относятся мероприятия инвестиционной программы","Наименование строек","Период реализации согласно ИП, лет","Плановый год ввода в эксплуатацию / выполнения мероприятия","Стадия выполнения, %","Источник финансирования",null,"Всего утверждено на весь период реализации ИП",{"$f":"\"Утверждено на \" & year_begin","v":"Утверждено на "},{"$f":"\"Утверждено на \" & year_begin+1","v":"Утверждено на 1"},{"$f":"\"Утверждено на \" & year_begin+2","v":"Утверждено на 2"},{"$f":"\"Утверждено на \" & year_begin+3","v":"Утверждено на 3"},{"$f":"\"Утверждено на \" & year_begin+4","v":"Утверждено на 4"},{"$f":"\"Утверждено на \" & year_begin+5","v":"Утверждено на 5"},{"$f":"\"Утверждено на \" & year_begin+6","v":"Утверждено на 6"},{"$f":"\"Утверждено на \" & year_begin+7","v":"Утверждено на 7"},{"$f":"\"Утверждено на \" & year_begin+8","v":"Утверждено на 8"},{"$f":"\"Утверждено на \" & year_begin+9","v":"Утверждено на 9"},{"$f":"\"Утверждено на оставшийся период\"","v":"Утверждено на оставшийся период"}]
[null,null,null,null,null,null,"Всего",null,null,null,null,null,{"$f":"SUM(M41:M42)","v":0},0,0,0,0,0,0,0,0,0,0,0]
[null,null,null,0]
[null,null,null,null,"Добавить объект"]
[]
[null,null,null,"Прочие объекты и мероприятия, относимые к регулируемому виду деятельности"]
[null,null,null,"№ п/п","Группа, к которой относятся мероприятия инвестиционной программы","Подгруппа, к которой относятся мероприятия инвестиционной программы","Наименование строек","Период реализации согласно ИП, лет","Плановый год ввода в эксплуатацию / выполнения мероприятия","Стадия выполнения, %","Источник финансирования",null,"Всего утверждено на весь период реализации ИП",{"$f":"\"Утверждено на \" & year_begin","v":"Утверждено на "},{"$f":"\"Утверждено на \" & year_begin+1","v":"Утверждено на 1"},{"$f":"\"Утверждено на \" & year_begin+2","v":"Утверждено на 2"},{"$f":"\"Утверждено на \" & year_begin+3","v":"Утверждено на 3"},{"$f":"\"Утверждено на \" & year_begin+4","v":"Утверждено на 4"},{"$f":"\"Утверждено на \" & year_begin+5","v":"Утверждено на 5"},{"$f":"\"Утверждено на \" & year_begin+6","v":"Утверждено на 6"},{"$f":"\"Утверждено на \" & year_begin+7","v":"Утверждено на 7"},{"$f":"\"Утверждено на \" & year_begin+8","v":"Утверждено на 8"},{"$f":"\"Утверждено на \" & year_begin+9","v":"Утверждено на 9"},{"$f":"\"Утверждено на оставшийся период\"","v":"Утверждено на оставшийся период"}]
[null,null,null,null,null,null,"Всего",null,null,null,null,null,{"$f":"SUM(M47:M48)","v":0},0,0,0,0,0,0,0,0,0,{"$f":"SUM(W47:W48)","v":0},{"$f":"SUM(X47:X48)","v":0}]
[null,null,null,0]
[null,null,null,null,"Добавить объект"]

{"sheet":"Качество и надежность","index":7,"n_rows":32,"n_cols":21,"rows_kept":32,"cut":false,"hidden":true,"merged":[[5,4,5,10],[6,3,8,3],[6,4,8,9],[6,10,8,10],[6,16,6,20],[7,11,8,11],[7,12,8,12],[7,13,8,13],[7,14,7,15],[7,16,8,16],[13,4,15,4],[13,5,15,5],[13,6,15,6],[13,7,15,7],[7,17,7,18],[13,14,13,15],[13,16,13,20],[13,11,13,13],[14,11,15,11],[14,12,15,12],[6,11,6,13],[6,14,6,15],[9,4,9,9],[14,19,14,20],[20,3,22,3],[20,4,22,4],[20,5,22,5],[20,6,22,6],[20,7,22,7],[13,3,15,3],[21,13,22,13],[20,10,22,10],[7,19,7,20],[14,13,15,13],[14,14,14,15],[20,11,20,13],[20,14,20,15],[20,16,20,20],[14,17,14,18],[20,8,22,8],[20,9,22,9],[13,8,15,8],[13,9,15,9],[13,10,15,10],[28,17,28,18],[21,14,21,15],[21,16,22,16],[21,17,21,18],[14,16,15,16],[28,12,29,12],[21,19,21,20],[28,14,28,15],[28,16,29,16],[27,3,29,3],[27,4,29,4],[27,5,29,5],[27,6,29,6],[27,7,29,7],[27,8,29,8],[28,13,29,13],[21,11,22,11],[21,12,22,12],[28,19,28,20],[27,9,29,9],[27,10,29,10],[27,11,27,13],[27,14,27,15],[27,16,27,20],[28,11,29,11]]}
[]
[]
[]
[null,null,null,"Показатели качества и надежности"]
[null,null,null,{"$f":"region_name & \" \" & org","v":" "}]
[]
[null,null,null,"№ п/п","Всего по организации",null,null,null,null,null,"Утверждены ли показатели надежности и энергетической эффективности объектов теплоснабжения, да/нет","Реквизиты решения",null,null,"Показатели надежности ",null,"Показатели энергетической эффективности "]
[null,null,null,null,null,null,null,null,null,null,null,"Номер","Дата принятия","URL-ссылка на решение","Количество прекращений подачи тепловой энергии, теплоносителя в результате технологических нарушений",null,"удельный расход топлива на производство единицы тепловой энергии, т.у.т./Гкал","Отношение величины технологических потерь к материальной характеристике тепловой сети",null,"Величина технологических потерь"]
[null,null,null,null,null,null,null,null,null,null,null,null,null,null,"на тепловых сетях на 1 км тепловых сетей, ед.в год/км","на источниках тепловой энергии на 1 Гкал/час установленной мощности, ед.в год/Гкал/час",null,"при передаче тепловой энергии, Гкал/кв.м","при передаче теплоносителя, тонн/кв.м","при передаче тепловой энергии, Гкал/год","при передаче теплоносителя по тепловым сетям, тонн/год"]
[null,null,null,"1","Всего по организации",null,null,null,null,null,null,"",null,"","","","","","","",""]
[]
[]
[null,null,null,"Производство тепловой энергии"]
[null,null,null,"№ п/п","Группа, к которой относятся мероприятия инвестиционной программы","Подгруппа, к которой относятся мероприятия инвестиционной программы","Наименование строек","Период реализации согласно ИП, лет","Плановый год ввода в эксплуатацию / выполнения мероприятия","Стадия выполнения, %","Утверждены ли показатели надежности и энергетической эффективности объектов теплоснабжения, да/нет","Реквизиты решения",null,null,"Показатели надежности ",null,"Показатели энергетической эффективности "]
[null,null,null,null,null,null,null,null,null,null,null,"Номер","Дата принятия","URL-ссылка на решение","Количество прекращений подачи тепловой энергии, теплоносителя в результате технологических нарушений",null,"удельный расход топлива на производство единицы тепловой энергии, т.у.т./Гкал","Отношение величины технологических потерь к материальной характеристике тепловой сети",null,"Величина технологических потерь"]
[null,null,null,null,null,null,null,null,null,null,null,null,null,null,"на тепловых сетях на 1 км тепловых сетей, ед.в год/км","на источниках тепловой энергии на 1 Гкал/час установленной мощности, ед.в год/Гкал/час",null,"при передаче тепловой энергии, Гкал/кв.м","при передаче теплоносителя, тонн/кв.м","при передаче тепловой энергии, Гкал/год","при передаче теплоносителя по тепловым сетям, тонн/год"]
[null,null,null,0]
[null,null,null,null,"Добавить объект"]
[]
[null,null,null,"Передача теплоэнергии по региональным тепловым сетям"]
[null,null,null,"№ п/п","Группа, к которой относятся мероприятия инвестиционной программы","Подгруппа, к которой относятся мероприятия инвестиционной программы","Наименование строек","Период реализации согласно ИП, лет","Плановый год ввода в эксплуатацию / выполнения мероприятия","Стадия выполнения, %","Утверждены ли показатели надежности и энергетической эффективности объектов теплоснабжения, да/нет","Реквизиты решения",null,null,"Показатели надежности ",null,"Показатели энергетической эффективности "]
[null,null,null,null,null,null,null,null,null,null,null,"Номер","Дата принятия","URL-ссылка на решение","Количество прекращений подачи тепловой энергии, теплоносителя в результате технологических нарушений",null,"удельный расход топлива на производство единицы тепловой энергии, т.у.т./Гкал","Отношение величины технологических потерь к материальной характеристике тепловой сети",null,"Величина технологических потерь"]
[null,null,null,null,null,null,null,null,null,null,null,null,null,null,"на тепловых сетях на 1 км тепловых сетей, ед.в год/км","на источниках тепловой энергии на 1 Гкал/час установленной мощности, ед.в год/Гкал/час",null,"при передаче тепловой энергии, Гкал/кв.м","при передаче теплоносителя, тонн/кв.м","при передаче тепловой энергии, Гкал/год","при передаче теплоносителя по тепловым сетям, тонн/год"]
[null,null,null,0]
[null,null,null,null,"Добавить объект"]
[]
[null,null,null,"Прочие объекты и мероприятия, относимые к регулируемому виду деятельности"]
[null,null,null,"№ п/п","Группа, к которой относятся мероприятия инвестиционной программы","Подгруппа, к которой относятся мероприятия инвестиционной программы","Наименование строек","Период реализации согласно ИП, лет","Плановый год ввода в эксплуатацию / выполнения мероприятия","Стадия выполнения, %","Утверждены ли показатели надежности и энергетической эффективности объектов теплоснабжения, да/нет","Реквизиты решения",null,null,"Показатели надежности ",null,"Показатели энергетической эффективности "]
[null,null,null,null,null,null,null,null,null,null,null,"Номер","Дата принятия","URL-ссылка на решение","Количество прекращений подачи тепловой энергии, теплоносителя в результате технологических нарушений",null,"удельный расход топлива на производство единицы тепловой энергии, т.у.т./Гкал","Отношение величины технологических потерь к материальной характеристике тепловой сети",null,"Величина технологических потерь"]
[null,null,null,null,null,null,null,null,null,null,null,null,null,null,"на тепловых сетях на 1 км тепловых сетей, ед.в год/км","на источниках тепловой энергии на 1 Гкал/час установленной мощности, ед.в год/Гкал/час",null,"при передаче тепловой энергии, Гкал/кв.м","при передаче теплоносителя, тонн/кв.м","при передаче тепловой энергии, Гкал/год","при передаче теплоносителя по тепловым сетям, тонн/год"]
[null,null,null,0]
[null,null,null,null,"Добавить объект"]

{"sheet":"Комментарии","index":8,"n_rows":10,"n_cols":6,"rows_kept":10,"cut":false,"hidden":true,"merged":[[6,3,6,5],[8,3,9,3]]}
[]
[]
[]
[]
[]
[]
[null,null,null,"Комментарии"]
[]
[null,null,null,"Прочие комментарии"]
[null,null,null,null,null,"Добавить комментарий"]

{"sheet":"Проверка","index":9,"n_rows":4,"n_cols":4,"rows_kept":4,"cut":false,"hidden":true,"merged":[[1,1,1,3]]}
[]
[null,"Результат проверки"]
[]
[null,"Ссылка","Причина","Статус"]

{"sheet":"TEHSHEET","index":10,"n_rows":87,"n_cols":17,"rows_kept":87,"cut":false,"hidden":true,"merged":[]}
["REGION",null,"ip_list","begin_year_list","year_list","all_year_list","month_list","logical","vdet_list","org_form_list","ist_fin_list","kvartal_list","group_list","podgroup_1_list","podgroup_3_list","podgroup_5_list","spr_pok_kach"]
["Алтайский край",null,"Новая ИП","2016","2016","2002","Январь","да","Передача+Сбыт","Общество с ограниченной ответственностью","Прибыль направляемая на инвестиции","I квартал","Строительство, реконструкция или модернизация объектов теплоснабжения в целях подключения потребителей с указанием объектов теплоснабжения, строительство которых финансируется за счет платы за подключение","строительство новых тепловых сетей в целях подключения потребителей","реконструкция или модернизация существующих тепловых сетей","вывод из эксплуатации, консервация и демонтаж тепловых сетей","по организации"]
["Амурская область",null,null,null,"2017","2003","Февраль","нет","Передача","Общество с дополнительной ответственностью","за счет платы за технологическое присоединение","I полугодие","Строительство новых объектов теплоснабжения, не связанных с подключением (технологическим присоединением) новых потребителей, в том числе строительство новых тепловых сетей","строительство иных объектов теплоснабжения за исключением тепловых сетей в целях подключения потребителей","реконструкция или модернизация существующих объектов теплоснабжения за исключением тепловых сетей","вывод из эксплуатации, консервация и демонтаж иных объектов теплоснабжения, за исключением тепловых сетей","по отдельным мероприятиям"]
["Архангельская область",null,null,null,"2018","2004","Март",null,"производство комбинированная выработка","Публичное акционерное общество","Амортизационные отчисления","9 месяцев","Реконструкция или модернизация существующих объектов теплоснабжения в целях снижения уровня износа существующих объектов теплоснабжения","увеличение пропускной способности существующих тепловых сетей в целях подключения потребителей",null,null,"по организации и мероприятиям"]
["Астраханская область",null,null,null,"2019","2005","Апрель",null,"производство (некомбинированная выработка)+передача+сбыт","Непубличное акционерное общество","Прочие собственные средства","год","Мероприятия, направленные на повышение экологической эффективности","увеличение мощности и производительности существующих объектов теплоснабжения за исключением тепловых сетей в целях подключения потребителей"]
["Белгородская область",null,null,null,"2020","2006","Май",null,"производство (некомбинированная выработка)+передача","Муниципальное унитарное предприятие","Кредиты",null,"Вывод из эксплуатации, консервации и демонтаж объектов теплоснабжения"]
["Брянская область",null,null,null,"2021","2007","Июнь",null,"производство (некомбинированная выработка)+сбыт","Федеральное государственное унитарное предприятие","Займы",null,"Мероприятия, направленные на повышение энергоэффективности в сфере теплоснабжения"]
["Владимирская область",null,null,null,"2022","2008","Июль",null,"производство (некомбинированная выработка)","Государственное унитарное предприятие","Прочие привлеченные средства"]
["Волгоградская область",null,null,null,"2023","2009","Август",null,null,"КЭЧ","Федеральный бюджет"]
["Вологодская область",null,null,null,"2024","2010","Сентябрь",null,null,"В/ч","Бюджет субъекта РФ"]
["Воронежская область",null,null,null,"2025","2011","Октябрь",null,null,"ПБОЮЛ (ИП, ЧП)","Бюджет муниципального образования"]
["г.Байконур",null,null,null,"2026","2012","Ноябрь",null,null,"Полное товарищество","Лизинг"]
["г. Москва",null,null,null,"2027","2013","Декабрь",null,null,"Производственный кооператив","Прочие"]
["г.Санкт-Петербург",null,null,null,"2028","2014",null,null,null,"Простое товарищество"]
["г.Севастополь",null,null,null,"2029","2015"]
["Еврейская автономная область",null,null,null,"2030","2016"]
["Забайкальский край",null,null,null,"2031","2017"]
["Ивановская область",null,null,null,"2032","2018"]
["Иркутская область",null,null,null,null,"2019"]
["Кабардино-Балкарская республика",null,null,null,null,"2020"]
["Калининградская область",null,null,null,null,"2021"]
["Калужская область",null,null,null,null,"2022"]
["Камчатский край",null,null,null,null,"2023"]
["Карачаево-Черкесская республика",null,null,null,null,"2024"]
["Кемеровская область",null,null,null,null,"2025"]
["Кировская область",null,null,null,null,"2026"]
["Костромская область",null,null,null,null,"2027"]
["Краснодарский край",null,null,null,null,"2028"]
["Красноярский край",null,null,null,null,"2029"]
["Курганская область",null,null,null,null,"2030"]
["Курская область",null,null,null,null,"2031"]
["Ленинградская область",null,null,null,null,"2032"]
["Липецкая область"]
["Магаданская область"]
["Московская область"]
["Мурманская область"]
["Ненецкий автономный округ"]
["Нижегородская область"]
["Новгородская область"]
["Новосибирская область"]
["Омская область"]
["Оренбургская область"]
["Орловская область"]
["Пензенская область"]
["Пермский край"]
["Приморский край"]
["Псковская область"]
["Республика Адыгея"]
["Республика Алтай"]
["Республика Башкортостан"]
["Республика Бурятия"]
["Республика Дагестан"]
["Республика Ингушетия"]
["Республика Калмыкия"]
["Республика Карелия"]
["Республика Коми"]
["Республика Крым"]
["Республика Марий Эл"]
["Республика Мордовия"]
["Республика Саха (Якутия)"]
["Республика Северная Осетия-Алания"]
["Республика Татарстан"]
["Республика Тыва"]
["Республика Хакасия"]
["Ростовская область"]
["Рязанская область"]
["Самарская область"]
["Саратовская область"]
["Сахалинская область"]
["Свердловская область"]
["Смоленская область"]
["Ставропольский край"]
["Тамбовская область"]
["Тверская область"]
["Томская область"]
["Тульская область"]
["Тюменская область"]
["Удмуртская республика"]
["Ульяновская область"]
["Хабаровский край"]
["Ханты-Мансийский автономный округ"]
["Челябинская область"]
["Чеченская республика"]
["Чувашская республика"]
["Чукотский автономный округ"]
["Ямало-Ненецкий автономный округ"]
["Ярославская область"]

{"sheet":"et_union","index":11,"n_rows":21,"n_cols":13,"rows_kept":21,"cut":false,"hidden":true,"merged":[[2,9,3,9],[11,4,11,11],[2,3,3,3],[2,4,3,4],[2,5,3,5],[2,6,3,6],[2,7,3,7],[2,8,3,8]]}
["et_ws_01_obj"]
[]
[null,null,null,null,null,null,null,null,null,null,null,null,{"$f":"SUM(N3:X3)","v":0}]
[null,null,null,null,null,null,null,null,null,null,null,"Добавить ист. фин."]
[]
["et_ws_01_ist_fin"]
[]
[null,null,null,null,null,null,null,null,null,null,null,null,{"$f":"SUM(N8:X8)","v":0}]
[]
["et_ws_01_vdet"]
[]
[null,null,null,null,null,null,null,null,null,null,null,null,{"$f":"SUM(N12:X12)","v":0}]
[]
["et_LisComm"]
[]
[]
[]
[]
["et_ws_01_1_obj"]
[]
[null,null,null,null,null,null,null,null,null,null,null,null,""]

{"sheet":"modReestr","index":12,"n_rows":0,"n_cols":0,"rows_kept":0,"cut":false,"hidden":true,"merged":[]}

{"sheet":"modfrmReestr","index":13,"n_rows":0,"n_cols":0,"rows_kept":0,"cut":false,"hidden":true,"merged":[]}

{"sheet":"AllSheetsInThisWorkbook","index":14,"n_rows":21,"n_cols":2,"rows_kept":21,"cut":false,"hidden":true,"merged":[]}
["Расчетные листы","Скрытые листы"]
["Инструкция","TEHSHEET"]
["Лог обновления","modProv"]
["Титульный","et_union"]
["ИП","modReestr"]
["Качество и надежность","modfrmReestr"]
["Комментарии","modFill"]
["Проверка","AllSheetsInThisWorkbook"]
[null,"modInstruction"]
[null,"modUpdTemplMain"]
[null,"modfrmCheckUpdates"]
[null,"modfrmDateChoose"]
[null,"modfrmRegion"]
[null,"REESTR_MO"]
[null,"REESTR_ORG"]
[null,"modClassifierValidate"]
[null,"modDoubleClick"]
[null,"mod_00"]
[null,"mod_01"]
[null,"mod_01_1"]
[null,"mod_Com"]

{"sheet":"modInstruction","index":15,"n_rows":0,"n_cols":0,"rows_kept":0,"cut":false,"hidden":true,"merged":[]}

{"sheet":"modUpdTemplMain","index":16,"n_rows":0,"n_cols":0,"rows_kept":0,"cut":false,"hidden":true,"merged":[]}

{"sheet":"modfrmCheckUpdates","index":17,"n_rows":0,"n_cols":0,"rows_kept":0,"cut":false,"hidden":true,"merged":[]}

{"sheet":"modfrmDateChoose","index":18,"n_rows":0,"n_cols":0,"rows_kept":0,"cut":false,"hidden":true,"merged":[]}

{"sheet":"modfrmRegion","index":19,"n_rows":0,"n_cols":0,"rows_kept":0,"cut":false,"hidden":true,"merged":[]}

{"sheet":"REESTR_MO","index":20,"n_rows":0,"n_cols":0,"rows_kept":0,"cut":false,"hidden":true,"merged":[]}

{"sheet":"REESTR_ORG","index":21,"n_rows":0,"n_cols":0,"rows_kept":0,"cut":false,"hidden":true,"merged":[]}

{"sheet":"modClassifierValidate","index":22,"n_rows":0,"n_cols":0,"rows_kept":0,"cut":false,"hidden":true,"merged":[]}

{"sheet":"modDoubleClick","index":23,"n_rows":0,"n_cols":0,"rows_kept":0,"cut":false,"hidden":true,"merged":[]}

{"sheet":"mod_01","index":24,"n_rows":0,"n_cols":0,"rows_kept":0,"cut":false,"hidden":true,"merged":[]}

{"sheet":"mod_01_1","index":25,"n_rows":0,"n_cols":0,"rows_kept":0,"cut":false,"hidden":true,"merged":[]}

{"sheet":"mod_Com","index":26,"n_rows":0,"n_cols":0,"rows_kept":0,"cut":false,"hidden":true,"merged":[]}